fUSD/lending_fUSD_20260414
["ID","MTS","AMOUNT","RATE_DAILY","PERIOD"]
[420492069,1776153035801,-675.0093946,0.00013699,2]
[420492070,1776153035813,-675.0093946,0.00013699,2]
[420492071,1776153035833,-675.0093946,0.00013699,2]
[420492072,1776153035854,-675.0093946,0.00013699,2]
[420492073,1776153035866,-675.0093946,0.00013699,2]
[420492074,1776153035887,-675.0093946,0.00013699,2]
[420492075,1776153035903,-675.0093946,0.00013699,2]
[420492076,1776153035918,-675.0093946,0.00013699,2]
[420492077,1776153035932,-675.0093946,0.00013699,2]
[420492078,1776153035946,-675.0093946,0.00013699,2]
[420492079,1776153035959,-675.0093946,0.00013699,2]
[420492080,1776153035977,-675.0093946,0.00013699,2]
[420492081,1776153035989,-675.0093946,0.00013699,2]
[420492082,1776153036002,-675.0093946,0.00013699,2]
[420492083,1776153036020,-675.0093946,0.00013699,2]
[420492084,1776153036046,-675.0093946,0.00013699,2]
[420492085,1776153036058,-661.5092067,0.00013699,2]
[420492086,1776153036079,-661.5092067,0.00013699,2]
[420492087,1776153036095,-661.5092067,0.00013699,2]
[420492088,1776153036107,-661.5092067,0.00013699,2]
[420492089,1776153036122,-661.5092067,0.00013699,2]
[420492090,1776153036137,-661.5092067,0.00013699,2]
[420492091,1776153036150,-661.5092067,0.00013699,2]
[420492092,1776153036167,-661.5092067,0.00013699,2]
[420492093,1776153036195,-661.5092067,0.00013699,2]
[420492094,1776153036210,-661.5092067,0.00013699,2]
[420492095,1776153036233,-661.5092067,0.00013699,2]
[420492096,1776153036247,-661.5092067,0.00013699,2]
[420492097,1776153036266,-661.5092067,0.00013699,2]
[420492098,1776153036285,-661.5092067,0.00013699,2]
[420492099,1776153036296,-661.5092067,0.00013699,2]
[420492100,1776153036314,-661.5092067,0.00013699,2]
[420492101,1776153036330,-661.5092067,0.00013699,2]
[420492102,1776153036350,-661.5092067,0.00013699,2]
[420492103,1776153036364,-661.5092067,0.00013699,2]
[420492104,1776153036381,-661.5092067,0.00013699,2]
[420492105,1776153036399,-661.5092067,0.00013699,2]
[420492106,1776153036410,-661.5092067,0.00013699,2]
[420492107,1776153036421,-661.5092067,0.00013699,2]
[420492108,1776153036437,-661.5092067,0.00013699,2]
[420492109,1776153036464,-661.5092067,0.00013699,2]
[420492110,1776153036477,-661.5092067,0.00013699,2]
[420492111,1776153036493,-661.5092067,0.00013699,2]
[420492112,1776153036519,-661.5092067,0.00013699,2]
[420492113,1776153036535,-632.56817892,0.00013699,2]
[420492114,1776153036553,-632.56817892,0.00013699,2]
[420492115,1776153036576,-632.56817892,0.00013699,2]
[420492116,1776153036600,-632.56817892,0.00013699,2]
[420492117,1776153036613,-632.56817892,0.00013699,2]
[420492118,1776153036634,-632.56817892,0.00013699,2]
[420492119,1776153036645,-632.56817892,0.00013699,2]
[420492120,1776153036659,-632.56817892,0.00013699,2]
[420492121,1776153036673,-632.56817892,0.00013699,2]
[420492122,1776153036685,-632.56817892,0.00013699,2]
[420492123,1776153036701,-632.56817892,0.00013699,2]
[420492124,1776153036714,-632.56817892,0.00013699,2]
[420492125,1776153036733,-632.56817892,0.00013699,2]
[420492126,1776153036745,-632.56817892,0.00013699,2]
[420492127,1776153036759,-632.56817892,0.00013699,2]
[420492128,1776153036782,-632.5681789,0.00013699,2]
[420492129,1776153036807,-2815.0,0.000137,2]
[420492130,1776153036829,-1575.0,0.000137,2]
[420492131,1776153036849,-10340.47232114,0.00013872,2]
[420492169,1776153045748,-1060.22111676,9.125e-05,2]
[420492170,1776153045762,-1019.64210675,9.125e-05,2]
[420492171,1776153046205,-6.4710636,9.125e-05,2]
[420492172,1776153046215,-500.0,9.875e-05,2]
[420492173,1776153046225,-150.0,0.00013698,2]
[420492174,1776153046239,-180.3859606,0.00013698,2]
[420492175,1776153046254,-14.56061998,0.00013698,2]
[420492176,1776153046264,-500.0,0.00013698,2]
[420492177,1776153046274,-2360.95521005,0.00013872,2]
[420492190,1776153047267,-163.77,0.0001402,2]
[420492191,1776153047291,-305.8116,0.000141,2]
[420492192,1776153047321,-621.60484722,0.00014199,2]
[420492193,1776153047350,-163.77,0.00014433,2]
[420492194,1776153047362,-3068.42205466,0.00014458,2]
[420492195,1776153050471,-726.65367492,0.00010279,2]
[420492196,1776153053854,-604.34632508,0.00010279,2]
[420492197,1776153053867,-2475.033,0.00010279,2]
[420492198,1776153053880,-1172.605,0.00013279,2]
[420492199,1776153053891,-2473.0,0.00013279,2]
[420492200,1776153053900,-3384.57794534,0.00014458,2]
[420492201,1776153053910,-150.0,0.000145,2]
[420492202,1776153053930,-500.0,0.00014657,2]
[420492203,1776153053942,-599.66218983,0.00014657,2]
[420492204,1776153053951,-502.17135528,0.00014657,2]
[420492205,1776153053967,-500.0,0.00014702,2]
[420492206,1776153053988,-500.0,0.00014702,2]
[420492207,1776153053999,-500.0,0.00014702,2]
[420492208,1776153054014,-163.77,0.00014846,2]
[420492209,1776153054032,-4509.29777601,0.00014994,2]
[420492210,1776153054044,-300.0,0.00015,2]
[420492211,1776153054054,-1728.92264373,0.00015,2]
[420492212,1776153054070,-813.17,0.00015068,2]
[420492213,1776153054082,-801.82377364,0.00015068,2]
[420492214,1776153054098,-2000.0,0.000151,2]
[420492215,1776153054124,-500.0,0.00015178,2]
[420492216,1776153054159,-200.0,0.00015178,2]
[420492217,1776153054200,-250.0,0.00015184,2]
[420492218,1776153054215,-250.01,0.00015184,2]
[420492219,1776153054248,-21494.99049169,0.000152,2]
[420492220,1776153054258,-1971.97822534,0.000152,2]
[420492221,1776153054278,-509.68381314,0.000152,2]
[420492222,1776153054289,-2000.0,0.000152,2]
[420492223,1776153054309,-500.0,0.00015205,2]
[420492224,1776153054321,-1000.0,0.0001525,2]
[420492225,1776153054332,-1000.0,0.0001525,2]
[420492226,1776153054368,-1000.78234559,0.0001525,2]
[420492227,1776153054380,-163.77,0.00015259,2]
[420492228,1776153054390,-500.6495102,0.00015273,2]
[420492229,1776153054407,-500.16663065,0.00015273,2]
[420492230,1776153054434,-500.0,0.00015273,2]
[420492231,1776153054447,-500.0,0.00015273,2]
[420492232,1776153054463,-500.0,0.00015273,2]
[420492233,1776153054476,-500.38683501,0.00015273,2]
[420492234,1776153054488,-500.0,0.00015273,2]
[420492235,1776153054503,-500.0,0.00015273,2]
[420492236,1776153054515,-500.0,0.00015273,2]
[420492237,1776153054525,-163.80985617,0.00015273,2]
[420492238,1776153054549,-500.0,0.00015273,2]
[420492239,1776153054559,-569.35372801,0.00015273,2]
[420492240,1776153054568,-500.0,0.00015273,2]
[420492241,1776153054578,-500.0,0.00015273,2]
[420492242,1776153054605,-501.50619118,0.00015273,2]
[420492243,1776153054618,-202.92367114,0.00015273,2]
[420492244,1776153054647,-561.89558629,0.00015273,2]
[420492245,1776153054658,-500.94452121,0.00015273,2]
[420492246,1776153054667,-500.0,0.00015273,2]
[420492247,1776153054688,-500.0,0.00015273,2]
[420492248,1776153054698,-516.38965989,0.00015273,2]
[420492249,1776153054707,-160.94923742,0.00015273,2]
[420492250,1776153054728,-168.91116423,0.00015273,2]
[420492251,1776153054739,-500.0,0.00015273,2]
[420492252,1776153054749,-1697.54195352,0.0001529,2]
[420492253,1776153054769,-1697.54195352,0.0001529,2]
[420492254,1776153054781,-500.0,0.00015291,2]
[420492255,1776153054815,-128558.7634966,0.00015292,2]
[420492256,1776153054825,-151.0,0.00015297,2]
[420492257,1776153054857,-155.0,0.00015299,2]
[420492258,1776153054871,-300.0,0.00015299,2]
[420492259,1776153054886,-300.0,0.00015299,2]
[420492260,1776153054897,-240.48200629,0.00015299,2]
[420492261,1776153054909,-356.0,0.000153,5]
[420492262,1776153054927,-55194.87842992,0.000153,2]
[420492263,1776153054937,-106218.11470832,0.000153,2]
[420492264,1776153055334,-380.51299992,0.000153,2]
[420492266,1776153516855,6032.67795001,8e-05,2]
[420492267,1776153549209,165.3,7.813e-05,2]
[420492270,1776153688910,4249.573,8.799e-05,2]
[420492271,1776153689061,367.095,8.799e-05,2]
[420492272,1776153702443,277.0,8.878e-05,2]
[420492273,1776153762495,250.0,8.878e-05,2]
[420492290,1776153805683,155.99,4.949e-05,2]
[420492291,1776153805909,155.99,7.423e-05,2]
[420492301,1776153967481,-250.0,8.927e-05,2]
[420492304,1776154002533,278.0,8.95e-05,2]
[420492313,1776154062317,2500.0,8.878e-05,2]
[420492314,1776154062507,272.0,8.95e-05,2]
[420492315,1776154071433,6450.01,8.95e-05,2]
[420492316,1776154071466,8318.2211,8.95e-05,2]
[420492317,1776154115826,10000.01,8.878e-05,2]
[420492318,1776154115860,10000.01,8.878e-05,2]
[420492319,1776154115893,10000.01,8.878e-05,2]
[420492320,1776154115922,10000.01,8.878e-05,2]
[420492321,1776154115950,10000.01,8.878e-05,2]
[420492327,1776154194065,502.0,8.857e-05,2]
[420492331,1776154233324,-150.0,8.877e-05,2]
[420492332,1776154233335,-300.0,8.877e-05,2]
[420492333,1776154233344,-1200.0,8.877e-05,2]
[420492334,1776154233354,-37.07694753,8.877e-05,2]
[420492335,1776154233368,-262.92305247,8.877e-05,2]
[420492336,1776154233378,-300.0,8.877e-05,2]
[420492337,1776154233390,-66403.75888395,8.878e-05,2]
[420492338,1776154233404,-9723.84205866,8.878e-05,2]
[420492339,1776154233427,-242030.88595739,8.878e-05,2]
[420492340,1776154233442,-25956.539732,8.878e-05,2]
[420492341,1776154233473,-1254.41808677,8.878e-05,2]
[420492342,1776154233492,-5601.10756157,8.878e-05,2]
[420492343,1776154233541,-955.48961763,8.878e-05,2]
[420492344,1776154238165,-500.0,8.877e-05,2]
[420492345,1776154238176,-381.60288031,8.877e-05,2]
[420492346,1776154238196,-509.22224031,8.877e-05,2]
[420492347,1776154238211,-500.0,8.877e-05,2]
[420492348,1776154238221,-322.98261083,8.877e-05,2]
[420492349,1776154238240,-500.0,8.877e-05,2]
[420492350,1776154238258,-500.0,8.877e-05,2]
[420492351,1776154238270,-483.36103957,8.877e-05,2]
[420492352,1776154238303,-316.87399315,8.877e-05,2]
[420492353,1776154238316,-500.0,8.877e-05,2]
[420492354,1776154238354,-500.0,8.877e-05,2]
[420492355,1776154238370,-500.0,8.877e-05,2]
[420492356,1776154238398,-177.86523583,8.877e-05,2]
[420492357,1776154238455,-322.13476417,8.877e-05,2]
[420492358,1776154238465,-500.0,8.877e-05,2]
[420492359,1776154238502,-62.2536647,8.877e-05,2]
[420492360,1776154238541,-437.7463353,8.877e-05,2]
[420492361,1776154238552,-500.0,8.877e-05,2]
[420492362,1776154238575,-500.0,8.877e-05,2]
[420492363,1776154238589,-3449.66221195,8.878e-05,2]
[420492369,1776154240518,-500.0,8.877e-05,2]
[420492370,1776154240527,-1235.27915185,8.878e-05,2]
[420492371,1776154240545,-3532.0,8.878e-05,2]
[420492377,1776154246243,-500.0,8.877e-05,2]
[420492378,1776154246253,-500.0,8.877e-05,2]
[420492380,1776154246271,-500.0,8.877e-05,2]
[420492381,1776154246284,-500.0,8.877e-05,2]
[420492383,1776154246295,-495.02592623,8.878e-05,2]
[420492384,1776154246333,-894.91738156,8.878e-05,2]
[420492385,1776154246345,-788.08638273,8.878e-05,2]
[420492386,1776154246627,-1638.31045625,8.878e-05,2]
[420492400,1776154248608,-500.0,8.877e-05,2]
[420492401,1776154248638,-500.0,8.877e-05,2]
[420492402,1776154248667,-500.0,8.877e-05,2]
[420492403,1776154248686,-500.0,8.877e-05,2]
[420492404,1776154248713,-500.0,8.877e-05,2]
[420492405,1776154248724,-500.0,8.877e-05,2]
[420492406,1776154248740,-228273.54389146,8.878e-05,2]
[420492407,1776154248753,-1746.48,8.95e-05,2]
[420492408,1776154248768,-500.0,8.976e-05,2]
[420492409,1776154248779,-500.0,8.976e-05,2]
[420492410,1776154248794,-500.0,8.976e-05,2]
[420492411,1776154248810,-468.55102849,8.976e-05,2]
[420492412,1776154248821,-1200.0,8.977e-05,2]
[420492413,1776154248833,-338.82310807,8.977e-05,2]
[420492414,1776154248848,-700.0,9e-05,3]
[420492415,1776154248857,-151.0,9.297e-05,2]
[420492416,1776154248869,-150.0,9.3e-05,2]
[420492417,1776154248879,-172536.88,9.3e-05,2]
[420492418,1776154248896,-150.99,9.3e-05,2]
[420492419,1776154248908,-9999.99,9.3e-05,2]
[420492420,1776154248918,-4697.39,9.3e-05,2]
[420492421,1776154248933,-3617.90990963,9.333e-05,2]
[420492422,1776154248944,-200.0,9.361e-05,2]
[420492423,1776154248958,-7384.1155,9.398e-05,2]
[420492424,1776154248977,-1000.0,9.724e-05,2]
[420492425,1776154248989,-250.0,9.765e-05,2]
[420492426,1776154249002,-255.0,9.765e-05,2]
[420492427,1776154249014,-420.0,9.765e-05,2]
[420492428,1776154249031,-420.0,9.765e-05,2]
[420492429,1776154249044,-1680.0,9.765e-05,2]
[420492430,1776154249055,-5000.0,9.819e-05,2]
[420492431,1776154249066,-250.0,9.819e-05,2]
[420492432,1776154249076,-250.0,9.845e-05,2]
[420492433,1776154249090,-155.99,9.897e-05,2]
[420492434,1776154249100,-200.0,9.905e-05,2]
[420492435,1776154249111,-310.75442431,0.0001,2]
[420492436,1776154249121,-232.51660253,0.0001,2]
[420492437,1776154249135,-299.17641477,0.0001,2]
[420492438,1776154249145,-150.0,0.0001,2]
[420492439,1776154249159,-372.46557288,0.0001,2]
[420492440,1776154249172,-223.74498704,0.0001,2]
[420492441,1776154249183,-342.67698353,0.0001,2]
[420492442,1776154249194,-385.78380609,0.0001,2]
[420492443,1776154249206,-368.70290763,0.0001,2]
[420492444,1776154249218,-153.62606031,0.0001,2]
[420492445,1776154249233,-153.62606031,0.0001,2]
[420492446,1776154249244,-1500.0,0.0001,3]
[420492447,1776154249261,-500.0,0.0001,2]
[420492448,1776154249282,-500.0,0.0001,2]
[420492449,1776154249296,-200.0,0.0001,2]
[420492450,1776154249309,-500.0,0.0001,2]
[420492451,1776154249336,-500.0,0.0001,2]
[420492452,1776154249351,-500.0,0.0001,2]
[420492453,1776154249374,-500.0,0.0001,2]
[420492454,1776154249388,-500.0,0.0001,2]
[420492455,1776154249408,-500.0,0.0001,2]
[420492456,1776154249426,-500.0,0.0001,2]
[420492457,1776154249442,-500.0,0.0001,2]
[420492458,1776154249461,-500.0,0.0001,2]
[420492460,1776154249486,-151.0,0.0001,2]
[420492462,1776154249504,-151.0,0.0001,2]
[420492464,1776154249528,-151.0,0.0001,2]
[420492465,1776154249546,-151.0,0.0001,2]
[420492466,1776154249568,-500.0,0.0001,2]
[420492467,1776154249582,-151.0,0.0001,2]
[420492468,1776154249600,-500.0,0.0001,2]
[420492469,1776154249627,-151.0,0.0001,2]
[420492470,1776154249650,-151.0,0.0001,2]
[420492471,1776154249676,-500.0,0.0001,2]
[420492472,1776154249702,-151.0,0.0001,2]
[420492473,1776154249721,-500.0,0.0001,2]
[420492474,1776154249746,-151.0,0.0001,2]
[420492475,1776154249766,-500.0,0.0001,2]
[420492476,1776154249790,-151.0,0.0001,2]
[420492477,1776154249811,-500.0,0.0001,2]
[420492478,1776154249827,-151.0,0.0001,2]
[420492479,1776154249848,-500.0,0.0001,2]
[420492480,1776154249858,-500.0,0.0001,2]
[420492481,1776154249879,-500.0,0.0001,2]
[420492482,1776154249893,-500.0,0.0001,2]
[420492483,1776154249903,-500.0,0.0001,2]
[420492484,1776154249920,-151.0,0.0001,2]
[420492485,1776154249933,-152.51431987,0.0001,2]
[420492486,1776154249943,-316.25369367,0.0001,2]
[420492487,1776154249954,-150.0,0.0001017,2]
[420492488,1776154249966,-1218.0,0.0001017,2]
[420492489,1776154249977,-926.0,0.00010175,2]
[420492490,1776154249987,-3777.0,0.00010177,2]
[420492491,1776154249999,-6027.0,0.00010177,2]
[420492492,1776154250010,-416.0,0.00010177,2]
[420492493,1776154250020,-203.617,0.00010279,2]
[420492494,1776154250030,-150.0,0.00010279,2]
[420492495,1776154250041,-3527.0,0.00010279,2]
[420492496,1776154250053,-626.138,0.00010279,2]
[420492497,1776154250064,-1348.0,0.00010279,2]
[420492498,1776154250074,-1264.0,0.00010279,2]
[420492499,1776154250085,-2461.3718,0.00010293,2]
[420492500,1776154250097,-200.0,0.00010548,2]
[420492501,1776154250107,-190.2162,0.000106,2]
[420492502,1776154250117,-5766.50502,0.000107,2]
[420492503,1776154250128,-195.0,0.00010741,2]
[420492504,1776154250141,-180.0,0.00010741,2]
[420492505,1776154250151,-261.0,0.00010741,2]
[420492506,1776154250162,-2351.0,0.00010741,2]
[420492507,1776154250173,-1716.14147556,0.00010755,2]
[420492508,1776154250186,-500.0,0.00010959,2]
[420492509,1776154250196,-395.45000643,0.00010999,2]
[420492510,1776154250208,-200.0,0.00011096,2]
[420492511,1776154250218,-15088.78556412,0.00011099,2]
[420492512,1776154250232,-15088.78556412,0.00011099,2]
[420492513,1776154250241,-15088.78556412,0.00011099,2]
[420492514,1776154250255,-15088.78556412,0.00011099,2]
[420492515,1776154250266,-251.0,0.00011325,5]
[420492516,1776154250288,-4976.82,0.00011381,2]
[420492517,1776154250304,-372.93383003,0.00011473,2]
[420492518,1776154250317,-160.0,0.00011528,2]
[420492519,1776154250331,-200.0,0.00011644,2]
[420492520,1776154250342,-578.20924308,0.0001165,2]
[420492521,1776154250353,-200.0,0.0001165,2]
[420492522,1776154250365,-721.12765535,0.0001165,2]
[420492523,1776154250379,-500.0,0.0001165,2]
[420492524,1776154250390,-1428.38747117,0.0001165,2]
[420492525,1776154250402,-209.40437685,0.0001165,2]
[420492526,1776154250415,-200.0,0.0001165,2]
[420492527,1776154250430,-151.0,0.0001165,2]
[420492528,1776154250439,-743.50770149,0.0001165,2]
[420492529,1776154250455,-500.0,0.0001165,2]
[420492530,1776154250476,-500.0,0.0001165,2]
[420492531,1776154250487,-500.0,0.0001165,2]
[420492532,1776154250509,-355.29769713,0.0001165,2]
[420492533,1776154250522,-500.0,0.0001165,2]
[420492534,1776154250534,-500.0,0.0001165,2]
[420492535,1776154250566,-500.0,0.0001165,2]
[420492536,1776154250578,-500.0,0.0001165,2]
[420492537,1776154250609,-500.0,0.0001165,2]
[420492538,1776154250621,-500.0,0.0001165,2]
[420492539,1776154250660,-500.0,0.0001165,2]
[420492540,1776154250671,-174.61919141,0.0001165,2]
[420492541,1776154250715,-500.0,0.0001165,2]
[420492542,1776154250772,-209.40437684,0.0001165,2]
[420492543,1776154250822,-395.45000643,0.00011699,2]
[420492544,1776154250851,-15088.78556412,0.000117,2]
[420492545,1776154250874,-500.0,0.00011705,2]
[420492546,1776154250911,-151.0,0.00011705,2]
[420492547,1776154250945,-245.15719549,0.00011714,2]
[420492548,1776154250970,-250.0,0.00011731,2]
[420492549,1776154250987,-500.0,0.0001176,2]
[420492550,1776154251018,-151.0,0.0001176,2]
[420492551,1776154251036,-500.0,0.00011815,2]
[420492552,1776154251069,-151.0,0.00011815,2]
[420492553,1776154251097,-3292.0,0.00011815,2]
[420492554,1776154251125,-1228.82502732,0.00011832,3]
[420492555,1776154251177,-228.0,0.00011833,5]
[420492556,1776154251224,-500.0,0.0001187,2]
[420492557,1776154251292,-151.0,0.0001187,2]
[420492558,1776154251324,-500.0,0.00011925,2]
[420492559,1776154251346,-151.0,0.00011925,2]
[420492560,1776154251361,-500.0,0.0001198,2]
[420492561,1776154251390,-151.0,0.0001198,2]
[420492562,1776154251404,-331.56990499,0.00011988,2]
[420492563,1776154251438,-264.8479141,0.00011988,2]
[420492564,1776154251450,-1169.76882645,0.00011988,2]
[420492565,1776154251482,-271.41142962,0.00011988,2]
[420492566,1776154251495,-183.70489824,0.00011988,2]
[420492567,1776154251521,-241.2147,0.00012,2]
[420492568,1776154251533,-500.0,0.00012035,2]
[420492569,1776154251545,-151.0,0.00012035,2]
[420492570,1776154251559,-500.0,0.0001209,2]
[420492571,1776154251569,-151.0,0.0001209,2]
[420492572,1776154251581,-500.0,0.00012145,2]
[420492573,1776154251599,-151.0,0.00012145,2]
[420492574,1776154251610,-200.0,0.00012198,2]
[420492575,1776154251625,-1481.23780761,0.00012198,2]
[420492576,1776154251640,-771.01748645,0.00012198,2]
[420492577,1776154251654,-181.08010149,0.00012198,2]
[420492578,1776154251665,-500.0,0.000122,2]
[420492579,1776154251679,-151.0,0.000122,2]
[420492580,1776154251698,-180.47179094,0.0001224,2]
[420492581,1776154251711,-727.97220645,0.0001224,2]
[420492582,1776154251730,-275.30996113,0.0001224,2]
[420492583,1776154251745,-171.62636477,0.0001224,2]
[420492584,1776154251761,-54974.37,0.00012355,2]
[420492585,1776154251784,-395.45000643,0.00012399,2]
[420492586,1776154251795,-15088.78556412,0.000124,2]
[420492587,1776154251809,-150.36,0.00012553,2]
[420492588,1776154251839,-151.0,0.00012739,2]
[420492589,1776154251854,-200.0,0.00012746,2]
[420492590,1776154251892,-1536.04360649,0.00012746,2]
[420492591,1776154251903,-799.54513345,0.00012746,2]
[420492592,1776154251931,-187.78006525,0.00012746,2]
[420492593,1776154251950,-5272.0,0.00012927,2]
[420492594,1776154251973,-5272.0,0.00012968,2]
[420492595,1776154251990,-4609.0,0.00012997,2]
[420492596,1776154252004,-363.15464618,0.00013019,2]
[420492597,1776154252026,-5272.0,0.00013087,2]
[420492598,1776154252036,-395.45000643,0.000131,2]
[420492599,1776154252052,-15088.78556412,0.000131,2]
[420492600,1776154252070,-5272.0,0.00013132,2]
[420492601,1776154252081,-150.0,0.00013151,2]
[420492602,1776154252095,-500.0,0.00013151,2]
[420492603,1776154252109,-500.0,0.00013151,2]
[420492604,1776154252121,-500.0,0.00013151,2]
[420492605,1776154252132,-500.0,0.00013151,2]
[420492606,1776154252151,-500.0,0.00013151,2]
[420492607,1776154252165,-500.0,0.00013151,2]
[420492608,1776154252175,-500.0,0.00013151,2]
[420492609,1776154252192,-500.0,0.00013151,2]
[420492610,1776154252212,-474.80274828,0.00013151,2]
[420492611,1776154252222,-500.0,0.00013151,2]
[420492612,1776154252242,-500.0,0.00013151,2]
[420492613,1776154252256,-500.0,0.00013151,2]
[420492614,1776154252269,-500.0,0.00013151,2]
[420492615,1776154252283,-500.0,0.00013151,2]
[420492616,1776154252297,-350.0,0.00013151,2]
[420492617,1776154252307,-150.0,0.00013151,2]
[420492618,1776154252318,-232.15618835,0.00013151,2]
[420492619,1776154252329,-150.0,0.00013151,2]
[420492620,1776154252341,-150.0,0.00013151,2]
[420492621,1776154252351,-150.0,0.00013151,2]
[420492622,1776154252362,-213.5793185,0.00013151,2]
[420492623,1776154252373,-150.0,0.00013151,2]
[420492624,1776154252386,-5272.0,0.00013163,2]
[420492625,1776154252398,-1218.0,0.0001317,2]
[420492626,1776154252410,-926.0,0.00013175,2]
[420492627,1776154252423,-3777.0,0.00013177,2]
[420492628,1776154252433,-6027.0,0.00013177,2]
[420492629,1776154252445,-416.0,0.00013177,2]
[420492630,1776154252462,-10854.63,0.00013244,2]
[420492631,1776154252475,-5272.0,0.00013255,2]
[420492632,1776154252492,-150.0,0.00013279,2]
[420492633,1776154252507,-150.0,0.00013279,2]
[420492634,1776154252521,-3527.0,0.00013279,2]
[420492635,1776154252535,-622.0,0.00013279,2]
[420492636,1776154252550,-1348.0,0.00013279,2]
[420492637,1776154252566,-1264.0,0.00013279,2]
[420492638,1776154252579,-5272.0,0.00013281,2]
[420492639,1776154252597,-151.74057834,0.00013293,2]
[420492640,1776154252617,-200.0,0.00013294,2]
[420492641,1776154252634,-1592.87721993,0.00013294,2]
[420492642,1776154252645,-829.12830338,0.00013294,2]
[420492643,1776154252677,-194.72792766,0.00013294,2]
[420492644,1776154252688,-5272.0,0.00013294,2]
[420492645,1776154252704,-305.8863,0.000133,2]
[420492646,1776154252717,-1600.0,0.00013329,2]
[420492647,1776154252727,-5272.0,0.00013354,2]
[420492648,1776154252747,-1131.69463568,0.00013415,2]
[420492649,1776154252761,-3240.0,0.00013425,2]
[420492650,1776154252778,-150.0,0.00013425,2]
[420492651,1776154252797,-150.0,0.00013425,2]
[420492652,1776154252813,-500.0,0.00013425,2]
[420492653,1776154252830,-500.0,0.00013425,2]
[420492654,1776154252854,-500.0,0.00013425,2]
[420492655,1776154252871,-500.0,0.00013425,2]
[420492656,1776154252899,-500.0,0.00013425,2]
[420492657,1776154252923,-500.0,0.00013425,2]
[420492658,1776154252950,-500.0,0.00013425,2]
[420492659,1776154253000,-500.0,0.00013425,2]
[420492660,1776154253053,-500.0,0.00013425,2]
[420492661,1776154253099,-500.0,0.00013425,2]
[420492662,1776154253156,-500.0,0.00013425,2]
[420492663,1776154253223,-500.0,0.00013425,2]
[420492664,1776154253246,-500.0,0.00013425,2]
[420492665,1776154253280,-500.0,0.00013425,2]
[420492666,1776154253298,-500.0,0.00013425,2]
[420492667,1776154253327,-500.0,0.00013425,2]
[420492668,1776154253339,-499.0,0.00013425,2]
[420492669,1776154253362,-500.0,0.00013425,2]
[420492670,1776154253385,-500.0,0.00013425,2]
[420492671,1776154253407,-500.0,0.00013425,2]
[420492672,1776154253435,-500.0,0.00013425,2]
[420492673,1776154253455,-500.0,0.00013425,2]
[420492674,1776154253482,-500.0,0.00013425,2]
[420492675,1776154253499,-500.0,0.00013425,2]
[420492676,1776154253526,-500.0,0.00013425,2]
[420492677,1776154253542,-500.0,0.00013425,2]
[420492678,1776154253563,-500.0,0.00013425,2]
[420492679,1776154253582,-500.0,0.00013425,2]
[420492680,1776154253601,-500.0,0.00013425,2]
[420492681,1776154253614,-500.0,0.00013425,2]
[420492682,1776154253627,-500.0,0.00013425,2]
[420492683,1776154253640,-500.0,0.00013425,2]
[420492684,1776154253653,-500.0,0.00013425,2]
[420492685,1776154253670,-5272.0,0.00013425,2]
[420492686,1776154253684,-5272.0,0.00013481,2]
[420492687,1776154253697,-1000.0,0.000135,2]
[420492688,1776154253713,-507.0,0.000135,2]
[420492689,1776154253723,-150.36,0.00013508,2]
[420492690,1776154253735,-5272.0,0.0001361,2]
[420492691,1776154253747,-2815.0,0.0001364,2]